fUST/lending_fUST_20251216
["ID","MTS","AMOUNT","RATE_DAILY","PERIOD"]
[398592779,1765857143338,-940.6,0.00015342,2]
[398592780,1765857143347,-1956.75,0.00015342,2]
[398592781,1765857143356,-260.83236652,0.00015342,2]
[398592782,1765857143366,-3247.84,0.00015342,2]
[398592783,1765857143376,-1069.42,0.00015342,2]
[398592784,1765857143385,-2026.56,0.00015342,2]
[398592785,1765857143395,-1628.96,0.00015342,2]
[398592786,1765857143405,-1954.46,0.00015342,2]
[398592787,1765857143415,-1842.29,0.00015342,2]
[398592788,1765857143427,-1249.58,0.00015342,2]
[398592789,1765857143437,-5203.28,0.00015342,2]
[398592790,1765857143446,-2367.41,0.00015342,2]
[398592791,1765857143456,-3863.02,0.00015342,2]
[398592792,1765857143466,-2306.5,0.00015342,2]
[398592793,1765857143476,-460.0,0.00015342,2]
[398592794,1765857143486,-5137.41,0.00015342,2]
[398592795,1765857143496,-674.15,0.00015342,2]
[398592796,1765857143505,-560.29,0.00015342,2]
[398592797,1765857143514,-500.0,0.00015342,2]
[398592798,1765857143523,-2457.45,0.00015342,2]
[398592799,1765857143533,-1620.3,0.00015342,2]
[398592800,1765857143543,-935.88,0.00015342,2]
[398592801,1765857143553,-2175.69,0.00015342,2]
[398592802,1765857143562,-500.0,0.00015342,2]
[398592803,1765857143572,-831.4,0.00015342,2]
[398592804,1765857143581,-537.44,0.00015342,2]
[398592805,1765857143590,-2001.73202312,0.00015342,2]
[398592806,1765857143600,-2002.83992423,0.00015342,2]
[398592807,1765857143609,-2005.50843032,0.00015342,2]
[398592808,1765857143618,-2002.30552947,0.00015342,2]
[398592809,1765857143627,-2002.53227285,0.00015342,2]
[398592810,1765857143636,-2002.31860099,0.00015342,2]
[398592811,1765857143645,-2002.16124156,0.00015342,2]
[398592812,1765857143654,-457.1078968,0.00015342,2]
[398592813,1765857143663,-1218.30964385,0.00015342,2]
[398592814,1765857143672,-2001.80766034,0.00015342,2]
[398592815,1765857143682,-1715.15730005,0.00015342,2]
[398592816,1765857143691,-1507.45939093,0.00015342,2]
[398592817,1765857143701,-501.27260569,0.00015342,2]
[398592818,1765857143710,-152.39380254,0.00015342,2]
[398592819,1765857143719,-2004.00838086,0.00015342,2]
[398592820,1765857143729,-2125.67765849,0.00015342,2]
[398592821,1765857143737,-315.13663447,0.00015354,2]
[398592822,1765857143746,-160.0,0.00015359,6]
[398592823,1765857143756,-1003.47810119,0.00015464,2]
[398592824,1765857143765,-935.5908613,0.00015464,2]
[398592825,1765857143774,-502.45787853,0.00015464,2]
[398592826,1765857143783,-501.86687543,0.00015464,2]
[398592827,1765857143793,-1061.37023525,0.00015464,2]
[398592828,1765857143803,-623.73135597,0.00015464,2]
[398592829,1765857143812,-509.67739436,0.00015464,2]
[398592830,1765857143821,-190.91471378,0.00015464,2]
[398592831,1765857143830,-754.38708722,0.00015464,2]
[398592832,1765857143839,-865.27442625,0.00015464,2]
[398592833,1765857143849,-1886.09725913,0.00015464,2]
[398592834,1765857143859,-1494.46421896,0.00015464,2]
[398592835,1765857143868,-2500.0,0.00015464,2]
[398592836,1765857143878,-2500.0,0.00015464,2]
[398592837,1765857143888,-2500.0,0.00015464,2]
[398592838,1765857143897,-501.50194808,0.00015464,2]
[398592839,1765857143907,-2230.18084132,0.00015464,2]
[398592840,1765857143916,-2001.55085098,0.00015464,2]
[398592841,1765857143926,-1270.3855149,0.00015464,2]
[398592842,1765857143935,-501.28493927,0.00015464,2]
[398592843,1765857143945,-2500.0,0.00015464,2]
[398592844,1765857143955,-193.94535074,0.00015464,2]
[398592845,1765857143965,-2500.0,0.00015464,2]
[398592846,1765857143975,-503.76831242,0.00015464,2]
[398592847,1765857143985,-194.16249289,0.00015479,30]
[398592848,1765857143994,-931.0,0.00015574,2]
[398592849,1765857144004,-3839.6,0.00015616,2]
[398592850,1765857144013,-500.0,0.00015616,2]
[398592851,1765857144023,-500.0,0.00015616,2]
[398592852,1765857144032,-500.0,0.00015616,2]
[398592853,1765857144042,-609.81,0.00015616,2]
[398592854,1765857144051,-600.92,0.00015616,2]
[398592855,1765857144061,-500.26,0.00015616,2]
[398592856,1765857144070,-635.26,0.00015616,2]
[398592857,1765857144080,-2131.63,0.00015616,2]
[398592858,1765857144091,-1239.05,0.00015616,2]
[398592859,1765857144104,-832.5,0.00015616,2]
[398592860,1765857144118,-500.0,0.00015616,2]
[398592861,1765857144129,-1281.42,0.00015616,2]
[398592862,1765857144139,-706.65,0.00015616,2]
[398592863,1765857144150,-500.0,0.00015616,2]
[398592864,1765857144163,-500.0,0.00015616,2]
[398592865,1765857144172,-970.13,0.00015616,2]
[398592866,1765857144182,-500.0,0.00015616,2]
[398592867,1765857144191,-500.0,0.00015616,2]
[398592868,1765857144200,-905.09,0.00015616,2]
[398592869,1765857144209,-500.0,0.00015616,2]
[398592870,1765857144217,-1438.77,0.00015616,2]
[398592871,1765857144227,-546.64443724,0.00015616,2]
[398592872,1765857144238,-922.31,0.00015616,2]
[398592873,1765857144247,-500.81,0.00015616,2]
[398592874,1765857144256,-867.63,0.00015616,2]
[398592875,1765857144265,-500.0,0.00015616,2]
[398592876,1765857144274,-808.83,0.00015616,2]
[398592877,1765857144283,-772.63,0.00015616,2]
[398592878,1765857144292,-500.0,0.00015616,2]
[398592879,1765857144302,-724.68,0.00015616,2]
[398592880,1765857144311,-728.64,0.00015616,2]
[398592881,1765857144320,-788.39,0.00015616,2]
[398592882,1765857144330,-713.19,0.00015616,2]
[398592883,1765857144340,-711.19,0.00015616,2]
[398592884,1765857144349,-1903.91,0.00015616,2]
[398592885,1765857144359,-1163.59,0.00015616,2]
[398592886,1765857144368,-541.86,0.00015616,2]
[398592887,1765857144378,-873.56,0.00015616,2]
[398592888,1765857144388,-500.0,0.00015616,2]
[398592889,1765857144398,-478.70101704,0.00015616,2]
[398592890,1765857144407,-623.95,0.00015616,2]
[398592891,1765857144417,-500.0,0.00015616,2]
[398592892,1765857144426,-500.0,0.00015616,2]
[398592893,1765857144436,-939.88,0.00015616,2]
[398592894,1765857144446,-514.0,0.00015616,2]
[398592895,1765857144455,-500.0,0.00015616,2]
[398592896,1765857144465,-1404.96,0.00015616,2]
[398592897,1765857144474,-2624.19,0.00015616,2]
[398592898,1765857144484,-1165.8,0.00015616,2]
[398592899,1765857144493,-782.31,0.00015616,2]
[398592900,1765857144502,-500.0,0.00015616,2]
[398592901,1765857144512,-250.90915289,0.00015616,2]
[398592902,1765857144521,-500.0,0.00015616,2]
[398592903,1765857144530,-2047.92,0.00015616,2]
[398592904,1765857144540,-1419.58,0.00015616,2]
[398592905,1765857144549,-2858.67,0.00015616,2]
[398592906,1765857144558,-915.74,0.00015616,2]
[398592907,1765857144567,-561.34,0.00015616,2]
[398592908,1765857144576,-862.14,0.00015616,2]
[398592909,1765857144585,-728.64,0.00015616,2]
[398592910,1765857144595,-1196.22,0.00015616,2]
[398592911,1765857144604,-764.95,0.00015616,2]
[398592912,1765857144614,-1723.48,0.00015616,2]
[398592913,1765857144623,-795.49,0.00015616,2]
[398592914,1765857144632,-579.03,0.00015616,2]
[398592915,1765857144641,-527.94,0.00015616,2]
[398592916,1765857144650,-613.42,0.00015616,2]
[398592917,1765857144660,-852.9,0.00015616,2]
[398592918,1765857144670,-1741.83,0.00015616,2]
[398592919,1765857144679,-579.96,0.00015616,2]
[398592920,1765857144687,-500.0,0.00015616,2]
[398592921,1765857144697,-882.7,0.00015616,2]
[398592922,1765857144706,-909.29,0.00015616,2]
[398592923,1765857144715,-500.0,0.00015616,2]
[398592924,1765857144724,-1389.03,0.00015616,2]
[398592925,1765857144733,-652.64,0.00015616,2]
[398592926,1765857144742,-863.06,0.00015616,2]
[398592927,1765857144751,-946.95,0.00015616,2]
[398592928,1765857144760,-612.83453855,0.00015616,2]
[398592929,1765857144769,-752.63,0.00015616,2]
[398592930,1765857144778,-1824.47,0.00015616,2]
[398592931,1765857144788,-500.0,0.00015616,2]
[398592932,1765857144797,-500.0,0.00015616,2]
[398592933,1765857144806,-631.43,0.00015616,2]
[398592934,1765857144815,-548.39,0.00015616,2]
[398592935,1765857144824,-5069.0,0.00015616,2]
[398592936,1765857144834,-869.38,0.00015616,2]
[398592937,1765857144843,-500.0,0.00015616,2]
[398592938,1765857144852,-1418.86,0.00015616,2]
[398592939,1765857144861,-1398.62,0.00015616,2]
[398592940,1765857144870,-2490.08,0.00015616,2]
[398592941,1765857144879,-500.0,0.00015616,2]
[398592942,1765857144888,-886.06,0.00015616,2]
[398592943,1765857144897,-886.48,0.00015616,2]
[398592944,1765857144907,-528.18,0.00015616,2]
[398592945,1765857144916,-1144.03,0.00015616,2]
[398592946,1765857144925,-1839.21,0.00015616,2]
[398592947,1765857144934,-500.0,0.00015616,2]
[398592948,1765857144943,-760.81,0.00015616,2]
[398592949,1765857144952,-578.54,0.00015616,2]
[398592950,1765857144961,-525.22,0.00015616,2]
[398592951,1765857144970,-1799.91,0.00015616,2]
[398592952,1765857144979,-500.0,0.00015616,2]
[398592953,1765857144988,-1395.69,0.00015616,2]
[398592954,1765857144998,-2489.6,0.00015616,2]
[398592955,1765857145008,-1851.38,0.00015616,2]
[398592956,1765857145017,-3564.58,0.00015616,2]
[398592957,1765857145025,-1892.77,0.00015616,2]
[398592958,1765857145036,-554.05,0.00015616,2]
[398592959,1765857145045,-625.7,0.00015616,2]
[398592960,1765857145055,-614.05,0.00015616,2]
[398592961,1765857145065,-1268.17,0.00015616,2]
[398592962,1765857145075,-2548.3,0.00015616,2]
[398592963,1765857145085,-964.39,0.00015616,2]
[398592964,1765857145094,-500.0,0.00015616,2]
[398592965,1765857145103,-2757.29,0.00015616,2]
[398592966,1765857145112,-1379.13,0.00015616,2]
[398592967,1765857145122,-921.12,0.00015616,2]
[398592968,1765857145131,-500.0,0.00015616,2]
[398592969,1765857145140,-1281.57,0.00015616,2]
[398592970,1765857145149,-500.0,0.00015616,2]
[398592971,1765857145163,-500.0,0.00015616,2]
[398592972,1765857145172,-591.0,0.00015616,2]
[398592973,1765857145182,-500.0,0.00015616,2]
[398592974,1765857145190,-621.24,0.00015616,2]
[398592975,1765857145201,-858.92,0.00015616,2]
[398592976,1765857145210,-604.25,0.00015616,2]
[398592977,1765857145219,-601.93,0.00015616,2]
[398592978,1765857145228,-1724.77,0.00015616,2]
[398592979,1765857145237,-1883.58,0.00015616,2]
[398592980,1765857145246,-500.0,0.00015616,2]
[398592981,1765857145255,-897.25,0.00015616,2]
[398592982,1765857145266,-1210.79,0.00015616,2]
[398592983,1765857145275,-1351.77,0.00015616,2]
[398592984,1765857145285,-773.94,0.00015616,2]
[398592985,1765857145475,-724.47,0.00015616,2]
[398592986,1765857145485,-1559.66,0.00015616,2]
[398592987,1765857145495,-901.9,0.00015616,2]
[398592988,1765857145503,-162.5682112,0.00015616,2]
[398592989,1765857145513,-658.19,0.00015616,2]
[398592990,1765857145522,-1664.36,0.00015616,2]
[398592991,1765857145532,-540.02,0.00015616,2]
[398592992,1765857145541,-1280.6,0.00015616,2]
[398592993,1765857145550,-1404.56,0.00015616,2]
[398592994,1765857145559,-577.11,0.00015616,2]
[398592995,1765857145568,-517.8,0.00015616,2]
[398592996,1765857145579,-851.34,0.00015616,2]
[398592997,1765857145587,-500.0,0.00015616,2]
[398592998,1765857145597,-6779.98,0.00015616,2]
[398592999,1765857145606,-500.0,0.00015616,2]
[398593000,1765857145615,-500.0,0.00015616,2]
[398593001,1765857145624,-1225.41,0.00015616,2]
[398593002,1765857145633,-500.0,0.00015616,2]
[398593003,1765857145642,-879.62,0.00015616,2]
[398593004,1765857145651,-849.34,0.00015616,2]
[398593005,1765857145660,-4220.16,0.00015616,2]
[398593006,1765857145669,-2541.48,0.00015616,2]
[398593007,1765857145679,-618.0,0.00015616,2]
[398593008,1765857145689,-1330.94,0.00015616,2]
[398593009,1765857145698,-502.75,0.00015616,2]
[398593010,1765857145707,-1721.89,0.00015616,2]
[398593011,1765857145717,-1471.73,0.00015616,2]
[398593012,1765857145726,-1794.66,0.00015616,2]
[398593013,1765857145735,-919.0,0.00015616,2]
[398593014,1765857145744,-1483.78,0.00015616,2]
[398593015,1765857145754,-1436.2,0.00015616,2]
[398593016,1765857145763,-500.0,0.00015616,2]
[398593017,1765857145773,-9283.55,0.00015616,2]
[398593018,1765857145781,-1109.0,0.00015616,2]
[398593019,1765857145790,-930.78,0.00015616,2]
[398593020,1765857145799,-500.0,0.00015616,2]
[398593021,1765857145809,-700.85,0.00015616,2]
[398593022,1765857145818,-2453.55,0.00015616,2]
[398593023,1765857145828,-536.25,0.00015616,2]
[398593024,1765857145837,-542.11263555,0.00015616,2]
[398593025,1765857145846,-990.55,0.00015616,2]
[398593026,1765857145856,-2349.49,0.00015616,2]
[398593027,1765857145865,-707.6,0.00015616,2]
[398593028,1765857145874,-2196.03,0.00015616,2]
[398593029,1765857145884,-1420.86,0.00015616,2]
[398593030,1765857145894,-1354.29,0.00015616,2]
[398593031,1765857145903,-1566.76,0.00015616,2]
[398593032,1765857145912,-161.01432565,0.00015616,2]
[398593033,1765857145921,-1789.22,0.00015616,2]
[398593034,1765857145930,-500.0,0.00015616,2]
[398593035,1765857145940,-975.67,0.00015616,2]
[398593036,1765857145949,-997.09,0.00015616,2]
[398593037,1765857145962,-1344.17,0.00015616,2]
[398593038,1765857145971,-600.75,0.00015616,2]
[398593039,1765857145980,-4842.15,0.00015616,2]
[398593040,1765857145989,-938.39,0.00015616,2]
[398593041,1765857145998,-513.63,0.00015616,2]
[398593042,1765857146008,-1372.69,0.00015616,2]
[398593043,1765857146017,-1192.19,0.00015616,2]
[398593044,1765857146027,-825.5,0.00015616,2]
[398593045,1765857146036,-500.0,0.00015616,2]
[398593046,1765857146046,-2748.55,0.00015616,2]
[398593047,1765857146056,-2322.09,0.00015616,2]
[398593048,1765857146065,-708.11,0.00015616,2]
[398593049,1765857146074,-2125.4,0.00015616,2]
[398593050,1765857146083,-6830.61,0.00015616,2]
[398593051,1765857146092,-500.0,0.00015616,2]
[398593052,1765857146102,-8377.94,0.00015616,2]
[398593053,1765857146111,-2121.87,0.00015616,2]
[398593054,1765857146120,-858.84,0.00015616,2]
[398593055,1765857146129,-945.29,0.00015616,2]
[398593056,1765857146139,-1092.05,0.00015616,2]
[398593057,1765857146148,-580.26,0.00015616,2]
[398593058,1765857146161,-2445.72,0.00015616,2]
[398593059,1765857146170,-3903.36,0.00015616,2]
[398593060,1765857146179,-537.08,0.00015616,2]
[398593061,1765857146188,-618.36,0.00015616,2]
[398593062,1765857146198,-4243.55,0.00015616,2]
[398593063,1765857146208,-1422.62,0.00015616,2]
[398593064,1765857146217,-800.38,0.00015616,2]
[398593065,1765857146226,-1202.09,0.00015616,2]
[398593066,1765857146235,-799.6,0.00015616,2]
[398593067,1765857146245,-520.25,0.00015616,2]
[398593068,1765857146254,-14584.18,0.00015616,2]
[398593069,1765857146263,-2341.35,0.00015616,2]
[398593070,1765857146273,-500.0,0.00015616,2]
[398593071,1765857146282,-614.63,0.00015616,2]
[398593072,1765857146291,-2042.99,0.00015616,2]
[398593073,1765857146300,-3921.7,0.00015616,2]
[398593074,1765857146309,-2154.94,0.00015616,2]
[398593075,1765857146319,-1164.37,0.00015616,2]
[398593076,1765857146329,-1452.17,0.00015616,2]
[398593077,1765857146338,-3354.89,0.00015616,2]
[398593078,1765857146347,-885.63,0.00015616,2]
[398593079,1765857146355,-583.17,0.00015616,2]
[398593080,1765857146364,-934.17,0.00015616,2]
[398593081,1765857146374,-500.0,0.00015616,2]
[398593082,1765857146383,-2662.12,0.00015616,2]
[398593083,1765857146393,-940.07,0.00015616,2]
[398593084,1765857146402,-2691.53,0.00015616,2]
[398593085,1765857146411,-634.6595612,0.00015616,2]
[398593086,1765857146420,-500.0,0.00015616,2]
[398593087,1765857146430,-1389.33,0.00015616,2]
[398593088,1765857146438,-947.29,0.00015616,2]
[398593089,1765857146448,-1434.18,0.00015616,2]
[398593090,1765857146457,-607.29,0.00015616,2]
[398593091,1765857146466,-500.0,0.00015616,2]
[398593092,1765857146476,-3493.92,0.00015616,2]
[398593093,1765857146485,-500.0,0.00015616,2]
[398593094,1765857146494,-1734.78,0.00015616,2]
[398593095,1765857146504,-529.53,0.00015616,2]
[398593096,1765857146513,-364.79609326,0.00015616,2]
[398593097,1765857146523,-1497.62,0.00015616,2]
[398593098,1765857146533,-1890.34,0.00015616,2]
[398593099,1765857146544,-1321.15,0.00015616,2]
[398593100,1765857146553,-627.84,0.00015616,2]
[398593101,1765857146562,-1724.14,0.00015616,2]
[398593102,1765857146572,-1136.33,0.00015616,2]
[398593103,1765857146581,-2584.7,0.00015616,2]
[398593104,1765857146591,-906.3,0.00015616,2]
[398593105,1765857146600,-523.47,0.00015616,2]
[398593106,1765857146609,-500.0,0.00015616,2]
[398593107,1765857146619,-1103.9,0.00015616,2]
[398593108,1765857146628,-860.33,0.00015616,2]
[398593109,1765857146637,-526.2,0.00015616,2]
[398593110,1765857146647,-625.36,0.00015616,2]
[398593111,1765857146656,-3387.17,0.00015616,2]
[398593112,1765857146665,-838.05,0.00015616,2]
[398593113,1765857146675,-717.42,0.00015616,2]
[398593114,1765857146684,-1435.24,0.00015616,2]
[398593115,1765857146694,-238.69446015,0.00015616,2]
[398593116,1765857146703,-11122.08,0.00015616,2]
[398593117,1765857146712,-645.68,0.00015616,2]
[398593118,1765857146722,-22080.53,0.00015616,2]
[398593119,1765857146731,-3719.53,0.00015616,2]
[398593120,1765857146740,-835.99,0.00015616,2]
[398593121,1765857146749,-1808.12,0.00015616,2]
[398593122,1765857146762,-8246.11,0.00015616,2]
[398593123,1765857146771,-1665.52,0.00015616,2]
[398593124,1765857146781,-505.05,0.00015616,2]
[398593125,1765857146797,-5019.38,0.00015616,2]
[398593126,1765857146814,-980.38,0.00015616,2]
[398593127,1765857146832,-2863.98,0.00015616,2]
[398593128,1765857146850,-688.63,0.00015616,2]
[398593129,1765857146869,-2333.27,0.00015616,2]
[398593130,1765857146886,-884.98,0.00015616,2]
[398593131,1765857146903,-2011.13,0.00015616,2]
[398593132,1765857146918,-561.14,0.00015616,2]
[398593133,1765857146935,-5555.9,0.00015616,2]
[398593134,1765857146954,-1243.71,0.00015616,2]
[398593135,1765857146975,-1161.7,0.00015616,2]
[398593136,1765857146988,-35354.14,0.00015616,2]
[398593137,1765857147007,-9588.87,0.00015616,2]
[398593138,1765857147022,-1419.14,0.00015616,2]
[398593139,1765857147037,-1172.55,0.00015616,2]
[398593140,1765857147054,-500.0,0.00015616,2]
[398593141,1765857147069,-2089.03,0.00015616,2]
[398593142,1765857147084,-616.80813918,0.00015616,2]
[398593143,1765857147100,-3963.15,0.00015616,2]
[398593144,1765857147115,-2257.39,0.00015616,2]
[398593145,1765857147130,-1097.79,0.00015616,2]
[398593146,1765857147152,-1991.38,0.00015616,2]
[398593147,1765857147169,-841.22,0.00015616,2]
[398593148,1765857147183,-433.9511876,0.00015616,2]
[398593149,1765857147197,-800.38,0.00015616,2]
[398593150,1765857147212,-1431.03,0.00015616,2]
[398593151,1765857147226,-8351.41,0.00015616,2]
[398593152,1765857147241,-1423.76,0.00015616,2]
[398593153,1765857147256,-896.79,0.00015616,2]
[398593154,1765857147271,-1140.27,0.00015616,2]
[398593155,1765857147285,-914.19,0.00015616,2]
[398593156,1765857147300,-500.0,0.00015616,2]
[398593157,1765857147316,-4075.24,0.00015616,2]
[398593158,1765857147330,-1445.43,0.00015616,2]
[398593159,1765857147344,-500.0,0.00015616,2]
[398593160,1765857147358,-940.6,0.00015616,2]
[398593161,1765857147373,-1956.75,0.00015616,2]
[398593162,1765857147388,-3247.84,0.00015616,2]
[398593163,1765857147402,-1069.42,0.00015616,2]
[398593164,1765857147417,-2026.56,0.00015616,2]
[398593165,1765857147432,-1628.96,0.00015616,2]
[398593166,1765857147446,-1954.46,0.00015616,2]
[398593167,1765857147461,-1842.29,0.00015616,2]
[398593168,1765857147475,-1249.58,0.00015616,2]
[398593169,1765857147488,-5203.28,0.00015616,2]
[398593170,1765857147503,-2367.41,0.00015616,2]
[398593171,1765857147517,-3863.02,0.00015616,2]
[398593172,1765857147531,-2306.5,0.00015616,2]
[398593173,1765857147545,-5137.41,0.00015616,2]
[398593174,1765857147559,-674.15,0.00015616,2]
[398593175,1765857147576,-560.29,0.00015616,2]
[398593176,1765857147589,-500.0,0.00015616,2]
[398593177,1765857147604,-2457.45,0.00015616,2]
[398593178,1765857147619,-1620.3,0.00015616,2]
[398593179,1765857147634,-935.88,0.00015616,2]
[398593180,1765857147649,-2175.69,0.00015616,2]
[398593181,1765857147665,-500.0,0.00015616,2]
[398593182,1765857147680,-831.4,0.00015616,2]
[398593183,1765857147694,-537.44,0.00015616,2]
[398593184,1765857147709,-160.0,0.0001563,7]
[398593185,1765857147724,-415.0,0.00015797,2]
[398593186,1765857147740,-1361.0,0.00015797,2]
[398593187,1765857147756,-632.0,0.00015797,2]
[398593188,1765857147770,-2157.0,0.00015797,2]
[398593189,1765857147784,-160.0,0.000158,2]
[398593190,1765857147800,-1292.99714427,0.0001584,2]
[398593191,1765857147813,-3839.6,0.0001589,2]
[398593192,1765857147828,-500.0,0.0001589,2]
[398593193,1765857147843,-500.0,0.0001589,2]
[398593194,1765857147858,-500.0,0.0001589,2]
[398593195,1765857147874,-609.81,0.0001589,2]
[398593196,1765857147888,-600.92,0.0001589,2]
[398593197,1765857147903,-500.26,0.0001589,2]
[398593198,1765857147918,-635.26,0.0001589,2]
[398593199,1765857147933,-2131.63,0.0001589,2]
[398593200,1765857147948,-1239.05,0.0001589,2]
[398593201,1765857147961,-832.5,0.0001589,2]
[398593202,1765857147979,-500.0,0.0001589,2]
[398593203,1765857147993,-1281.42,0.0001589,2]
[398593204,1765857148007,-706.65,0.0001589,2]
[398593205,1765857148022,-500.0,0.0001589,2]
[398593206,1765857148036,-500.0,0.0001589,2]
[398593207,1765857148052,-970.13,0.0001589,2]
[398593208,1765857148066,-500.0,0.0001589,2]
[398593209,1765857148081,-500.0,0.0001589,2]
[398593210,1765857148096,-905.09,0.0001589,2]
[398593211,1765857148111,-500.0,0.0001589,2]
[398593212,1765857148125,-1438.77,0.0001589,2]
[398593213,1765857148140,-922.31,0.0001589,2]
[398593214,1765857148155,-500.81,0.0001589,2]
[398593215,1765857148171,-867.63,0.0001589,2]
[398593216,1765857148186,-500.0,0.0001589,2]
[398593217,1765857148201,-808.83,0.0001589,2]
[398593218,1765857148216,-772.63,0.0001589,2]
[398593219,1765857148231,-500.0,0.0001589,2]
[398593220,1765857148248,-724.68,0.0001589,2]
[398593221,1765857148272,-728.64,0.0001589,2]
[398593222,1765857148295,-788.39,0.0001589,2]
[398593223,1765857148310,-713.19,0.0001589,2]
[398593224,1765857148325,-711.19,0.0001589,2]
[398593225,1765857148340,-1903.91,0.0001589,2]
[398593226,1765857148357,-1163.59,0.0001589,2]
[398593227,1765857148370,-541.86,0.0001589,2]
[398593228,1765857148385,-873.56,0.0001589,2]
[398593229,1765857148400,-500.0,0.0001589,2]
[398593230,1765857148414,-623.95,0.0001589,2]
[398593231,1765857148428,-500.0,0.0001589,2]
[398593232,1765857148443,-500.0,0.0001589,2]
[398593233,1765857148457,-939.88,0.0001589,2]
[398593234,1765857148472,-514.0,0.0001589,2]
[398593235,1765857148494,-500.0,0.0001589,2]
[398593236,1765857148509,-1404.96,0.0001589,2]
[398593237,1765857148523,-2624.19,0.0001589,2]
[398593238,1765857148539,-1165.8,0.0001589,2]
[398593239,1765857148553,-782.31,0.0001589,2]
[398593240,1765857148568,-500.0,0.0001589,2]
[398593241,1765857148582,-311.06553084,0.0001589,2]
[398593242,1765857148596,-2047.92,0.0001589,2]
[398593243,1765857148611,-1419.58,0.0001589,2]
[398593244,1765857148624,-2858.67,0.0001589,2]
[398593245,1765857148639,-915.74,0.0001589,2]
[398593246,1765857148653,-561.34,0.0001589,2]
[398593247,1765857148667,-862.14,0.0001589,2]
[398593248,1765857148681,-728.64,0.0001589,2]
[398593249,1765857148701,-1196.22,0.0001589,2]
[398593250,1765857148714,-764.95,0.0001589,2]
[398593251,1765857148728,-1723.48,0.0001589,2]
[398593252,1765857148748,-795.49,0.0001589,2]
[398593253,1765857148762,-579.03,0.0001589,2]
[398593254,1765857148777,-527.94,0.0001589,2]
[398593255,1765857148793,-613.42,0.0001589,2]
[398593256,1765857148807,-852.9,0.0001589,2]
[398593257,1765857149080,-1741.83,0.0001589,2]
[398593258,1765857149099,-579.96,0.0001589,2]
[398593259,1765857149109,-500.0,0.0001589,2]
[398593260,1765857149119,-882.7,0.0001589,2]
[398593261,1765857149129,-909.29,0.0001589,2]
[398593262,1765857149139,-500.0,0.0001589,2]
[398593263,1765857149149,-1389.03,0.0001589,2]
[398593264,1765857149163,-652.64,0.0001589,2]
[398593265,1765857149173,-863.06,0.0001589,2]
[398593266,1765857149183,-946.95,0.0001589,2]
[398593267,1765857149194,-752.63,0.0001589,2]
[398593268,1765857149205,-1824.47,0.0001589,2]
[398593269,1765857149216,-500.0,0.0001589,2]
[398593270,1765857149228,-574.07041337,0.0001589,2]
[398593271,1765857149239,-631.43,0.0001589,2]
[398593272,1765857149249,-548.39,0.0001589,2]
[398593273,1765857149259,-5069.0,0.0001589,2]
[398593274,1765857149269,-869.38,0.0001589,2]
[398593275,1765857149279,-500.0,0.0001589,2]
[398593276,1765857149289,-1418.86,0.0001589,2]
[398593277,1765857149299,-1398.62,0.0001589,2]
[398593278,1765857149308,-2490.08,0.0001589,2]